bitfinex/quotes_ETHUSD_20210701
["timestamp","ask_amount","ask_price","bid_price","bid_amount"]
[1625163057699,4.9014682,2116.3,2115.5,5.07733173]
[1625163057700,0.0141682,2116.3,2115.5,5.07733173]
[1625163057946,0.0141682,2116.3,2115.6,0.15]
[1625163058299,0.0141682,2116.3,2115.9,7.08565]
[1625163058596,0.0141682,2116.3,2115.9,12.09565]
[1625163058699,0.0141682,2116.3,2115.9,7.08565]
[1625163058844,0.0141682,2116.3,2115.9,5.01]
[1625163059033,0.0141682,2116.3,2115.7,14.45766]
[1625163059135,0.0141682,2116.3,2115.7,5.01]
[1625163059333,0.0141682,2116.3,2115.5,10.08733173]
[1625163059482,7.1016882,2116.3,2115.5,12.16485173]
[1625163059583,7.1016882,2116.3,2115.5,17.17485173]
[1625163060084,7.1016882,2116.3,2115.5,10.08733173]
[1625163060582,7.1016882,2116.3,2115.5,2.6193859]
[1625163060936,10.6462697,2116.3,2115.3,0.00603307]
[1625163061278,0.1,2116.2,2115.3,0.00603307]
[1625163061580,3.5587497,2116.3,2115.3,0.00603307]
[1625163061731,7.08809,2116.2,2115.3,7.09421307]
[1625163064048,7.08809,2116.2,2115.3,0.00603307]
[1625163065453,0.00806786,2116.1,2115.3,0.00603307]
[1625163066071,4.6527,2116.0,2115.3,0.00603307]
[1625163066222,4.6127,2116.0,2115.3,0.00603307]
[1625163066525,7.08999,2115.7,2115.3,0.00603307]
[1625163067728,3.192,2115.8,2115.3,0.00603307]
[1625163067826,3.142,2115.8,2115.3,0.00603307]
[1625163068679,4.6127,2116.0,2115.3,0.00603307]
[1625163069481,7.08933,2115.9,2115.3,0.00603307]
[1625163076230,0.00799663,2115.8,2115.3,0.00603307]
[1625163077323,7.09786663,2115.8,2115.3,0.00603307]
[1625163077579,0.06,2115.7,2115.3,0.00603307]
[1625163078478,7.09101,2115.5,2115.3,0.00603307]
[1625163082973,22.09101,2115.5,2115.3,0.00603307]
[1625163083172,30.09101,2115.5,2115.3,0.00603307]
[1625163083269,30.24101,2115.5,2115.3,0.00603307]
[1625163083374,28.81,2115.4,2115.3,0.00603307]
[1625163083520,43.81,2115.4,2115.3,0.00603307]
[1625163083622,47.81,2115.4,2115.3,3.07e-06]
[1625163083844,0.28189616,2115.3,2114.8,0.00603798]
[1625163084043,5.04549616,2115.3,2114.8,0.00603798]
[1625163084341,0.04,2115.2,2114.8,0.00603798]
[1625163084696,39.84439,2114.9,2114.8,0.00603798]
[1625163084794,11.09439,2114.9,2114.8,0.00603798]
[1625163085697,26.09439,2114.9,2114.8,7.98e-06]
[1625163085848,39.16439,2114.9,2114.8,7.98e-06]
[1625163086179,39.31439,2114.9,2114.8,7.98e-06]
[1625163086360,59.31439,2114.9,2114.8,7.98e-06]
[1625163086563,39.31439,2114.9,2114.8,7.98e-06]
[1625163086864,59.31439,2114.9,2114.8,7.98e-06]
[1625163087115,49.31439,2114.9,2114.8,7.98e-06]
[1625163087515,34.30439,2114.9,2114.8,7.98e-06]
[1625163088413,41.80309,2114.9,2114.8,7.98e-06]
[1625163088865,51.80309,2114.9,2114.8,7.98e-06]
[1625163089713,46.79309,2114.9,2114.8,7.98e-06]
[1625163089968,51.80309,2114.9,2114.8,7.98e-06]
[1625163090065,46.79309,2114.9,2114.8,7.98e-06]
[1625163090165,51.80309,2114.9,2114.8,7.98e-06]
[1625163090740,76.80309,2114.9,2114.8,7.98e-06]
[1625163090995,79.09897533,2114.9,2114.8,7.98e-06]
[1625163091540,59.09897533,2114.9,2114.8,7.98e-06]
[1625163091645,94.8335628,2114.9,2114.8,7.98e-06]
[1625163091743,59.8335628,2114.9,2114.8,7.98e-06]
[1625163091845,52.52767747,2114.9,2114.8,7.98e-06]
[1625163091946,51.50257747,2114.9,2114.8,7.98e-06]
[1625163092097,42.03897747,2114.9,2114.8,7.98e-06]
[1625163092543,45.04897747,2114.9,2114.8,7.98e-06]
[1625163092643,31.31439,2114.9,2114.8,7.98e-06]
[1625163092870,46.31439,2114.9,2114.8,7.98e-06]
[1625163092976,47.70699,2114.9,2114.8,7.98e-06]
[1625163093122,49.26099,2114.9,2114.8,7.98e-06]
[1625163093273,57.26099,2114.9,2114.8,7.98e-06]
[1625163093471,42.26099,2114.9,2114.8,7.98e-06]
[1625163093726,29.25099,2114.9,2114.8,7.98e-06]
[1625163094426,49.25099,2114.9,2114.8,7.98e-06]
[1625163094525,96.19132512,2114.9,2114.8,7.98e-06]
[1625163094679,7.09692,2114.6,2114.3,0.00604352]
[1625163094775,15.0,2114.5,2114.3,0.00604352]
[1625163094925,23.0,2114.5,2114.3,0.00604352]
[1625163095142,14.7547,2114.5,2114.3,0.00604352]
[1625163095222,1.7447,2114.5,2114.3,0.00604352]
[1625163095320,3.0445,2114.6,2114.3,0.00604352]
[1625163095423,6.59308,2114.6,2114.3,0.00604352]
[1625163095623,10.1415392,2114.6,2114.3,0.00604352]
[1625163095824,23.1515392,2114.6,2114.3,0.00604352]
[1625163095924,0.12,2114.5,2114.3,0.00604352]
[1625163096026,35.8474,2114.4,2114.3,0.00604352]
[1625163096223,12.2274,2114.4,2114.3,0.00604352]
[1625163096430,27.2274,2114.4,2114.3,0.00604352]
[1625163096524,35.2274,2114.4,2114.3,0.00604352]
[1625163096625,27.2274,2114.4,2114.3,0.00604352]
[1625163096726,39.2274,2114.4,2114.3,0.00604352]
[1625163096924,39.0274,2114.4,2114.3,0.00604352]
[1625163097023,34.0174,2114.4,2114.3,0.00604352]
[1625163097125,39.0274,2114.4,2114.3,0.00604352]
[1625163097414,19.0174,2114.4,2114.3,0.00604352]
[1625163097718,15.0174,2114.4,2114.3,0.00604352]
[1625163097869,7.2174,2114.4,2114.3,0.00604352]
[1625163097966,22.2174,2114.4,2114.3,0.00604352]
[1625163098166,30.2281745,2114.4,2114.3,0.00604352]
[1625163098567,7.2281745,2114.4,2114.3,0.00604352]
[1625163098768,7.1081745,2114.4,2114.3,0.00604352]
[1625163102398,22.1081745,2114.4,2114.3,0.00604352]
[1625163102598,22.1481745,2114.4,2114.3,0.00604352]
[1625163103598,28.75,2114.3,2112.7,66.00313834]
[1625163103696,3.5486,2114.1,2112.7,66.00313834]
[1625163103795,7.0971969,2114.1,2112.7,66.00313834]
[1625163103897,0.00606473,2113.3,2112.7,66.00313834]
[1625163103998,0.00606473,2113.3,2112.7,60.99313834]
[1625163104151,0.00606473,2113.3,2112.8,0.1]
[1625163104354,7.0972,2113.6,2112.8,0.1]
[1625163104355,7.0972,2113.6,2112.9,24.8]
[1625163104452,7.0972,2113.6,2112.8,0.1]
[1625163104704,4.0616,2113.7,2112.8,0.1]
[1625163105103,4.0616,2113.7,2112.7,5.04831349]
[1625163105205,4.07113666,2113.7,2112.7,2.6102175]
[1625163105452,7.09806,2113.3,2112.7,2.6102175]
[1625163105550,7.09806,2113.3,2112.3,0.00607359]
[1625163105954,2.8256,2113.4,2112.4,0.08]
[1625163106050,2.8256,2113.4,2112.4,0.03]
[1625163106251,2.8256,2113.4,2112.4,2.63235917]
[1625163106407,2.8256,2113.4,2112.4,4.91412683]
[1625163106507,2.8256,2113.4,2112.4,9.92412683]
[1625163106610,2.8256,2113.4,2112.4,4.91412683]
[1625163106756,1.2261,2113.4,2112.4,9.92412683]
[1625163106859,4.0616,2113.7,2112.4,4.88412683]
[1625163107007,4.0616,2113.7,2112.5,0.06]
[1625163107257,4.0616,2113.7,2112.4,9.89412683]
[1625163107360,4.0616,2113.7,2112.6,2.60235917]
[1625163107459,7.09717,2113.6,2112.7,7.09694]
[1625163107559,7.09717,2113.6,2112.7,12.10694]
[1625163107809,7.09717,2113.6,2112.7,14.70929917]
[1625163108359,7.09717,2113.6,2112.7,7.61235917]
[1625163108712,4.0616,2113.7,2112.7,7.61235917]
[1625163108859,0.01017282,2113.5,2112.7,7.61235917]
[1625163109509,0.01017282,2113.5,2112.7,2.60235917]
[1625163109612,7.10771282,2113.5,2112.7,2.60235917]
[1625163109715,7.10771282,2113.5,2112.3,0.00607359]
[1625163110060,7.10771282,2113.5,2112.4,0.16]
[1625163110458,7.10771282,2113.5,2112.4,2.60235917]
[1625163111056,7.10771282,2113.5,2112.4,9.89412683]
[1625163111157,7.10771282,2113.5,2112.4,4.88412683]
[1625163111264,7.10771282,2113.5,2112.4,9.89412683]
[1625163111461,7.10771282,2113.5,2112.6,7.09739]
[1625163111609,7.10771282,2113.5,2112.6,12.10739]
[1625163111815,0.01017282,2113.5,2112.6,16.99151683]
[1625163111914,0.01017282,2113.5,2112.7,0.06]
[1625163112165,0.01017282,2113.5,2112.8,0.15]
[1625163112317,0.01017282,2113.5,2112.8,5.19132186]
[1625163112411,0.01017282,2113.5,2112.9,0.14]
[1625163112566,0.01017282,2113.5,2113.0,0.12]
[1625163112661,0.01017282,2113.5,2113.0,0.27]
[1625163112763,0.01017282,2113.5,2113.0,5.34542891]
[1625163113011,0.01017282,2113.5,2113.0,10.35542891]
[1625163113206,0.01017282,2113.5,2113.0,5.22542891]
[1625163113289,0.01017282,2113.5,2113.0,10.23542891]
[1625163113593,0.01017282,2113.5,2113.2,9.45941]
[1625163113838,0.01017282,2113.5,2113.3,5.07542891]
[1625163114038,0.01017282,2113.5,2113.4,27.25]
[1625163114237,0.01017282,2113.5,2113.4,32.26]
[1625163114338,0.01017282,2113.5,2113.4,7.54896269]
[1625163114793,0.01017282,2113.5,2113.4,14.64337269]
[1625163115089,0.01017282,2113.5,2113.4,7.54896269]
[1625163115404,0.01017282,2113.5,2113.4,7.44896269]
[1625163115806,0.00605682,2113.8,2113.5,19.6]
[1625163116121,0.00605682,2113.8,2113.5,5.01]
[1625163116219,7.05100682,2114.1,2113.6,17.65]
[1625163116419,7.05100682,2114.1,2113.6,5.01]
[1625163116521,7.05100682,2114.1,2113.4,2.43896269]
[1625163116622,10.81680682,2114.1,2112.9,10.4818]
[1625163116728,10.81680682,2114.1,2112.8,10.2511]
[1625163116821,10.81680682,2114.1,2112.8,10.1011]
[1625163117326,10.81680682,2114.1,2112.8,12.54006269]
[1625163117571,3.5484405,2114.0,2112.8,12.54006269]
[1625163117871,15.0,2114.0,2112.8,2.43896269]
[1625163117966,0.08,2113.9,2112.7,10.294]
[1625163118268,20.01,2114.0,2112.7,10.294]
[1625163118368,15.0,2114.0,2112.7,10.294]
[1625163119116,3.54921,2113.6,2112.7,10.294]
[1625163119223,7.0985,2113.2,2112.4,21.3953]
[1625163119319,7.0985,2113.2,2112.4,10.8513]
[1625163119519,7.0985,2113.2,2112.3,7.10406359]
[1625163119819,4.29681093,2113.2,2112.3,7.10406359]
[1625163120711,4.29681093,2113.2,2112.8,0.00606473]
[1625163120817,3.5489266,2113.7,2112.8,0.00606473]
[1625163121709,7.09805,2113.4,2112.8,0.00606473]
[1625163121910,0.06,2113.3,2112.8,0.00606473]
[1625163122060,7.09805,2113.4,2112.8,0.00606473]
[1625163122364,20.00754,2113.8,2112.8,0.00606473]
[1625163122468,10.5428,2113.8,2112.8,0.00606473]
[1625163122718,10.5428,2113.8,2112.8,2.64253095]
[1625163122826,0.01219146,2113.9,2112.8,2.79253095]
[1625163122921,0.01219146,2113.9,2112.8,14.89963095]
[1625163123267,0.01219146,2113.9,2112.9,0.08]
[1625163123566,0.01219146,2113.9,2113.0,2.63646622]
[1625163123665,0.01219146,2113.9,2113.0,6.61306622]
[1625163123765,0.01219146,2113.9,2113.0,11.62306622]
[1625163123867,0.01219146,2113.9,2113.0,26.80023152]
[1625163123965,0.01219146,2113.9,2113.1,0.06]
[1625163124364,0.01219146,2113.9,2113.0,28.12463152]
[1625163124472,0.01219146,2113.9,2113.4,7.09504]
[1625163124576,0.01219146,2113.9,2113.4,12.10504]
[1625163125228,0.01219146,2113.9,2112.8,0.00606473]
[1625163125380,3.24289146,2113.9,2112.8,0.00606473]
[1625163125724,3.5490478,2113.7,2112.8,0.00606473]
[1625163126023,3.5491,2113.6,2112.8,0.00606473]
[1625163126819,7.09712,2113.4,2112.8,0.00606473]
[1625163126918,10.21652,2113.4,2112.8,0.00606473]
[1625163129086,11.1194,2113.4,2112.8,0.00606473]
[1625163129180,3.349462,2113.2,2112.8,0.00606473]
[1625163130229,6.899392,2113.2,2112.8,0.00606473]
[1625163130432,7.1001,2113.0,2112.8,0.00606473]
[1625163130581,10.65033,2113.0,2112.8,0.00606473]
[1625163130784,28.75,2112.9,2112.0,10.84853832]
[1625163130881,28.75,2112.9,2111.8,0.00608351]
[1625163130882,3.5503031,2112.8,2111.8,0.00608351]
[1625163130983,4.7564031,2112.8,2111.8,0.00608351]
[1625163131285,1.21217359,2112.8,2112.0,2.63646622]
[1625163131633,7.0998,2112.6,2112.0,2.58646622]
[1625163131834,7.0998,2112.6,2111.8,7.10567351]
[1625163132781,7.0998,2112.6,2111.8,12.11567351]
[1625163133231,7.0998,2112.6,2111.9,0.06]
[1625163133526,7.0998,2112.6,2111.8,0.00608351]
[1625163134986,9.46728,2112.7,2111.8,2.63838307]
[1625163135090,0.01205039,2113.1,2112.8,1.59043662]
[1625163135376,7.11088039,2113.1,2112.8,1.59043662]
[1625163135481,7.11088039,2113.1,2112.8,3.662e-05]
[1625163135629,0.16,2113.0,2112.8,3.662e-05]
[1625163135975,3.8176,2113.0,2112.8,3.662e-05]
[1625163136276,26.21,2112.9,2112.8,3.662e-05]
[1625163136473,7.61,2112.9,2112.8,3.662e-05]
[1625163136722,0.16,2112.9,2112.8,3.662e-05]
[1625163137076,7.26007,2112.9,2112.8,3.662e-05]
[1625163137725,7.26007,2112.9,2111.8,11.83612013]
[1625163137726,3.55082,2112.7,2111.8,11.83612013]
[1625163138019,0.00608351,2112.3,2111.8,11.83612013]
[1625163138223,4.45108351,2112.3,2111.8,11.83612013]
[1625163138827,11.55287351,2112.3,2111.8,11.83612013]
[1625163139375,11.55287351,2112.3,2111.8,11.78612013]
[1625163140297,15.10421821,2112.3,2111.3,55.55873077]
[1625163140396,8.00242821,2112.3,2111.3,6.87609457]
[1625163140644,0.06,2112.2,2111.3,6.87609457]
[1625163140945,8.00242821,2112.3,2111.3,6.87609457]
[1625163141248,10.34794,2111.8,2111.3,6.87609457]
[1625163141602,6.14315606,2111.8,2111.3,6.87609457]
[1625163141699,3.245,2111.8,2111.3,6.87609457]
[1625163142351,3.245,2111.8,2111.3,0.00609457]
[1625163142533,10.34794,2111.8,2111.3,0.00609457]
[1625163142766,0.06,2111.7,2111.3,0.00609457]
[1625163143115,4.0609,2111.8,2111.3,0.00609457]
[1625163144469,7.10455,2111.5,2111.3,0.00609457]
[1625163144804,7.10455,2111.5,2110.6,17.2049]
[1625163144805,28.75,2111.4,2110.6,6.87]
[1625163144999,36.79,2111.4,2110.7,3.96]
[1625163145100,29.8969,2111.4,2110.7,3.96]
[1625163145249,11.5668,2111.3,2110.7,3.96]
[1625163145501,7.10637,2111.1,2110.7,3.96]
[1625163145604,3.5668,2111.3,2110.7,3.96]
[1625163145698,3.4068,2111.3,2110.7,3.96]
[1625163146449,3.34732644,2111.3,2110.7,3.96]
[1625163147000,7.1043,2111.7,2110.7,3.96]
[1625163147397,7.1043,2111.7,2110.7,8.97]
[1625163147507,2.25789457,2111.8,2110.7,3.96]
[1625163147600,0.00609457,2111.8,2110.8,3.79980689]
[1625163147806,0.00609457,2111.8,2110.9,2.10803899]
[1625163148004,0.00609457,2111.8,2110.9,2.20803899]
[1625163148109,0.00609457,2111.8,2111.3,7.10118]
[1625163148200,0.00609457,2111.8,2111.3,10.58178]
[1625163148304,0.00609457,2111.8,2111.4,0.04]
[1625163149104,0.00609457,2111.8,2111.4,6.91]
[1625163149203,0.00609457,2111.8,2111.6,7.10018]
[1625163149352,0.00609457,2111.8,2111.4,11.88]
[1625163149499,0.00609457,2111.8,2111.4,6.87]
[1625163149599,0.00609457,2111.8,2111.4,11.88]
[1625163149702,0.00609457,2111.8,2111.4,13.92387233]
[1625163149849,0.00609457,2111.8,2111.5,0.12]
[1625163150206,0.00608351,2112.3,2111.6,25.2]
[1625163150451,0.00608351,2112.3,2111.6,30.21]
[1625163150650,0.00608351,2112.3,2111.6,5.01]
[1625163150758,0.00608351,2112.3,2111.4,7.05387233]
[1625163150852,0.00608351,2112.3,2111.4,2.04387233]
[1625163150959,1.30068351,2112.3,2111.4,2.04387233]
[1625163151055,1.30068351,2112.3,2111.0,37.2517112]
[1625163151151,1.30068351,2112.3,2111.0,27.0041112]
[1625163151355,8.40205351,2112.3,2111.0,27.0041112]
[1625163151458,11.95347351,2112.3,2111.0,27.0041112]
[1625163151625,15.50504401,2112.3,2110.9,21.1073]
[1625163151713,0.1,2112.2,2110.9,21.1073]
[1625163151810,3.65182,2112.2,2110.9,21.1073]
[1625163152011,0.04,2112.1,2110.9,21.1073]
[1625163152212,3.55182,2112.2,2110.9,10.4366]
[1625163152364,8.40367401,2112.3,2110.9,10.4366]
[1625163152561,8.35367401,2112.3,2110.9,10.4366]
[1625163152762,17.82298401,2112.3,2110.9,10.4366]
[1625163152861,29.37459401,2112.3,2110.9,10.4366]
[1625163153064,21.37459401,2112.3,2110.9,10.4366]
[1625163153164,0.01263447,2112.2,2110.9,10.4366]
[1625163153416,0.01263447,2112.2,2111.3,0.00609457]
[1625163153855,7.10235,2112.0,2111.3,0.00609457]
[1625163154857,11.20307447,2112.2,2111.3,0.00609457]
[1625163154957,7.11437447,2112.2,2111.3,0.00609457]
[1625163157302,0.08,2112.1,2111.3,0.00609457]
[1625163157405,3.8707,2112.1,2111.3,0.00609457]
[1625163158455,7.10355,2111.7,2111.3,0.00609457]
[1625163158755,3.8707,2112.1,2111.3,0.00609457]
[1625163158756,3.7907,2112.1,2111.3,0.00609457]
[1625163158911,4.85298447,2112.2,2111.3,0.00609457]
[1625163159007,0.01263447,2112.2,2111.3,0.00609457]
[1625163160007,7.1023,2112.0,2111.3,0.00609457]
[1625163160510,0.01263447,2112.2,2111.3,0.00609457]
[1625163160763,0.01263447,2112.2,2111.4,2.50392229]
[1625163160858,0.01263447,2112.2,2111.4,2.44392229]
[1625163160959,0.01263447,2112.2,2111.4,7.45392229]
[1625163161060,0.01263447,2112.2,2111.4,2.44392229]
[1625163161257,0.01263447,2112.2,2111.4,7.45392229]
[1625163161403,0.01263447,2112.2,2111.4,2.44392229]
[1625163161501,0.01263447,2112.2,2111.4,7.45392229]
[1625163161606,0.01263447,2112.2,2111.6,7.10012]
[1625163161709,0.01263447,2112.2,2111.6,7.25012]
[1625163161806,0.01263447,2112.2,2111.7,4.6542]
[1625163162007,0.01263447,2112.2,2111.8,0.15]
[1625163162305,0.01263447,2112.2,2111.9,2.44392229]
[1625163162401,4.47e-06,2112.2,2111.9,2.44392229]
[1625163162507,4.47e-06,2112.2,2112.0,0.2]
[1625163162607,3.51e-06,2112.3,2112.2,28.75]
[1625163162707,3.51e-06,2112.3,2112.2,32.1294]
[1625163162875,3.51e-06,2112.3,2112.2,8.3894]
[1625163163014,3.51e-06,2112.3,2112.2,8.4294]
[1625163163267,3.51e-06,2112.3,2112.2,8.3894]
[1625163164069,3.51e-06,2112.3,2112.2,5.01]
[1625163164218,0.01114874,2112.3,2112.2,5.01]
[1625163164321,0.01114874,2112.3,2111.8,12.10943]
[1625163164465,0.01114874,2112.3,2111.8,7.09943]
[1625163164571,0.01114874,2112.3,2111.9,0.2]
[1625163164667,0.01114874,2112.3,2111.9,2.64392229]
[1625163164865,0.01114874,2112.3,2111.9,7.65392229]
[1625163164967,0.01114874,2112.3,2111.9,14.75280229]
[1625163165105,0.01114874,2112.3,2112.0,0.2]
[1625163165207,7.09911,2112.9,2112.1,20.3]
[1625163165457,7.09911,2112.9,2112.2,0.06]
[1625163165658,7.09911,2112.9,2111.9,14.55280229]
[1625163165760,10.21331,2112.9,2111.9,12.10888]
[1625163165862,10.21331,2112.9,2112.1,2.44392229]
[1625163166061,10.21331,2112.9,2111.8,0.00608351]
[1625163167109,10.21331,2112.9,2111.8,7.10551351]
[1625163167212,3.1142,2112.9,2111.8,9.5494358]
[1625163167377,27.75375473,2113.3,2111.8,9.5494358]
[1625163167378,27.75375473,2113.3,2111.9,0.15]
[1625163167472,24.20388473,2113.3,2111.9,0.29]
[1625163167721,24.20388473,2113.3,2112.0,2.44392229]
[1625163168068,13.37278473,2113.3,2112.0,2.44392229]
[1625163168421,7.09867,2113.2,2112.0,11.90803229]
[1625163168571,7.09867,2113.2,2112.0,16.91803229]
[1625163169019,3.90606473,2113.3,2112.1,0.1]
[1625163169473,0.00606473,2113.3,2112.2,2.44392229]
[1625163170367,0.00606473,2113.3,2112.3,9.46293]
[1625163170571,0.00606473,2113.3,2112.3,14.47293]
[1625163170721,0.00606473,2113.3,2112.3,5.01]
[1625163170917,0.00606473,2113.3,2112.2,2.44392229]
[1625163171370,7.10401473,2113.3,2112.2,2.44392229]
[1625163171477,3.550037,2113.1,2111.9,0.15]
[1625163171575,6.731137,2113.1,2111.8,0.00608351]
[1625163172430,3.1811,2113.1,2111.8,0.00608351]
[1625163172583,7.09948,2112.9,2111.8,7.09931]
[1625163172882,0.00608351,2112.3,2111.8,12.10931]
[1625163173684,0.00608351,2112.3,2111.8,5.01]
[1625163173885,0.00608351,2112.3,2111.7,7.45392229]
[1625163173984,0.00608351,2112.3,2111.7,2.44392229]
[1625163174112,0.00608351,2112.3,2111.7,7.45392229]
[1625163174358,0.00608351,2112.3,2111.7,2.44392229]
[1625163174453,0.00608351,2112.3,2111.7,7.45392229]
[1625163174557,0.00608351,2112.3,2111.7,2.44392229]
[1625163174709,7.10741351,2112.3,2111.7,2.44392229]
[1625163174857,7.10741351,2112.3,2111.3,12.59365006]
[1625163174858,7.10741351,2112.3,2111.3,10.49419457]
[1625163174955,7.10741351,2112.3,2111.3,0.00609457]
[1625163175109,7.11684548,2112.3,2111.3,0.00609457]
[1625163178681,0.01551548,2112.3,2111.3,0.00609457]
[1625163178879,0.14,2112.2,2111.3,0.00609457]
[1625163179784,7.10272,2112.0,2111.3,0.00609457]
[1625163180033,0.01551548,2112.3,2111.3,0.00609457]
[1625163181334,4.6097,2112.1,2111.3,0.00609457]
[1625163181487,19.6097,2112.1,2111.3,0.00609457]
[1625163181584,0.16,2112.0,2111.3,0.00609457]
[1625163182287,7.10419,2111.7,2111.3,0.00609457]
[1625163182532,0.06,2111.6,2111.3,0.00609457]
[1625163182634,4.3658,2111.6,2111.3,0.00609457]
[1625163183637,7.10502,2111.5,2111.3,0.00609457]
[1625163183887,22.10502,2111.5,2111.3,0.00609457]
[1625163183986,28.91,2111.4,2111.3,0.00609457]
[1625163184083,43.91,2111.4,2111.3,0.00609457]
[1625163184341,15.16,2111.4,2111.3,0.00609457]
[1625163184887,9.63569,2111.4,2111.3,0.00609457]
[1625163185240,28.1887143,2111.4,2111.3,0.00609457]
[1625163185423,28.1887143,2111.4,2111.3,4.57e-06]
[1625163185424,61.1987143,2111.4,2111.3,4.57e-06]
[1625163185511,56.1887143,2111.4,2111.3,4.57e-06]
[1625163185708,36.1887143,2111.4,2111.3,4.57e-06]
[1625163185911,21.1887143,2111.4,2111.3,4.57e-06]
[1625163186174,13.20124077,2111.4,2111.3,4.57e-06]
[1625163186268,0.17252647,2111.4,2111.3,4.57e-06]
[1625163190590,22.9,2111.3,2110.2,7.10541]
[1625163190738,0.01252647,2111.4,2110.2,7.10541]
[1625163190838,0.01252647,2111.4,2110.2,12.11541]
[1625163190939,0.00612058,2110.8,2110.2,11.96541]
[1625163191140,0.00612058,2110.8,2110.3,0.16]
[1625163191341,0.00610689,2111.3,2110.4,28.75]
[1625163191545,0.00610689,2111.3,2110.4,33.76]
[1625163191900,0.00610689,2111.3,2110.4,48.76010787]
[1625163191998,0.00610689,2111.3,2110.4,50.86514839]
[1625163192273,0.00610689,2111.3,2110.5,0.35]
[1625163192366,0.00610689,2111.3,2110.6,2.34440787]
[1625163192569,0.00610689,2111.3,2110.6,2.49440787]
[1625163193119,0.00610689,2111.3,2110.6,2.44440787]
[1625163193218,0.00610689,2111.3,2110.9,7.10263]
[1625163193317,0.00610689,2111.3,2110.9,11.74893]
[1625163193416,0.00610689,2111.3,2110.9,16.75893]
[1625163193516,0.00610689,2111.3,2110.9,9.6563]
[1625163193618,0.00610689,2111.3,2110.9,4.6463]
[1625163193917,0.00610689,2111.3,2111.0,0.08]
[1625163194443,0.00610689,2111.3,2110.9,4.6463]
[1625163195193,0.00610689,2111.3,2110.9,9.6563]
[1625163197965,7.11033689,2111.3,2110.9,9.6563]
[1625163198820,7.11033689,2111.3,2110.9,4.6463]
[1625163198927,7.11033689,2111.3,2110.5,10.2526]
[1625163199229,0.04,2111.2,2110.2,7.10423]
[1625163199330,7.11033689,2111.3,2110.2,7.10423]
[1625163199933,7.11033689,2111.3,2110.1,11.1083]
[1625163200229,7.11033689,2111.3,2110.1,16.1183]
[1625163200336,7.11033689,2111.3,2110.1,11.1083]
[1625163200583,7.11033689,2111.3,2109.9,10.1642]
[1625163201394,7.11033689,2111.3,2110.1,7.10537]
[1625163202299,7.11033689,2111.3,2110.1,12.11537]
[1625163204000,10.66339829,2111.3,2110.1,5.01]
[1625163204098,4.94666829,2111.3,2110.1,5.01]
[1625163204253,9.85346829,2111.3,2110.0,20.62489204]
[1625163204399,9.85346829,2111.3,2110.0,11.189]
[1625163205056,7.10643,2110.7,2110.0,11.189]
[1625163205202,11.83523,2110.7,2110.0,5.01]
[1625163205404,11.83523,2110.7,2109.8,2.34637695]
[1625163205846,11.83523,2110.7,2109.8,0.00613575]
[1625163206590,3.5541692,2110.6,2109.8,0.00613575]
[1625163206747,0.12,2110.5,2109.8,0.00613575]
[1625163207144,3.5541692,2110.6,2109.8,0.00613575]
[1625163207790,0.01529476,2110.4,2109.8,0.00613575]
[1625163208011,9.49308476,2110.4,2110.3,0.00612058]
[1625163208861,0.01529476,2110.4,2110.3,0.00612058]
[1625163216593,5.03989476,2110.4,2110.3,0.00612058]
[1625163222243,2.23448896,2110.4,2110.3,0.00612058]
[1625163222342,13.5883001,2110.5,2110.3,0.00612058]
[1625163222443,12.1428001,2110.5,2110.3,0.00612058]
[1625163223196,7.10686,2110.5,2110.3,0.00612058]
[1625163223296,3.5536254,2110.9,2110.3,0.00612058]
[1625163223397,11.84775,2111.1,2110.3,0.00612058]
[1625163223497,11.84775,2111.1,2110.4,0.06]
[1625163223816,7.10605,2110.9,2110.4,0.06]
[1625163223912,7.10605,2110.9,2110.3,0.00612058]
[1625163224411,11.84775,2111.1,2110.3,0.00612058]
[1625163224412,10.6697,2111.2,2110.3,0.00612058]
[1625163224563,3.55920229,2111.3,2110.3,0.00612058]
[1625163224764,0.00610689,2111.3,2110.3,7.11159058]
[1625163224915,0.00610689,2111.3,2110.4,0.14]
[1625163225313,0.00610689,2111.3,2110.4,2.63370095]
[1625163225514,0.00610689,2111.3,2110.4,7.64370095]
[1625163226053,0.00610689,2111.3,2110.8,11.05077]
[1625163226254,0.00610689,2111.3,2110.9,2.43131027]
[1625163226356,0.00610689,2111.3,2110.9,2.58131027]
[1625163226606,0.00610689,2111.3,2110.9,7.59131027]
[1625163226705,0.00610689,2111.3,2110.9,11.14182027]
[1625163227104,0.00609457,2111.8,2111.0,0.2]
[1625163227206,0.00609457,2111.8,2111.0,9.66892]
[1625163227360,0.00609457,2111.8,2111.3,6.86012]
[1625163227555,0.00609457,2111.8,2111.4,0.35]
[1625163227753,0.00609457,2111.8,2111.4,2.78131027]
[1625163228002,0.00609457,2111.8,2111.4,7.79131027]
[1625163228108,0.00609457,2111.8,2111.4,2.78131027]
[1625163228313,0.00609457,2111.8,2111.5,0.2]
[1625163228414,0.00609457,2111.8,2111.5,7.29951]
[1625163228512,0.00609457,2111.8,2111.5,5.21]
[1625163228711,0.00609457,2111.8,2111.6,0.04]
[1625163228816,0.00609457,2111.8,2111.5,5.01]
[1625163228916,3.88049457,2111.8,2111.0,25.02572]
[1625163229213,3.89435097,2111.8,2111.1,0.2]
[1625163229718,3.89435097,2111.8,2111.2,0.04]
[1625163229915,3.89435097,2111.8,2110.9,7.10244]
[1625163230015,3.89435097,2111.8,2110.9,12.11244]
[1625163230166,3.89435097,2111.8,2110.9,13.01]
[1625163230274,3.89435097,2111.8,2110.9,5.01]
[1625163230421,3.89435097,2111.8,2111.0,0.2]
[1625163230572,3.89435097,2111.8,2111.0,2.70263454]
[1625163230658,3.89435097,2111.8,2111.0,7.71263454]
[1625163231360,3.89435097,2111.8,2111.1,0.04]
[1625163233409,3.89435097,2111.8,2111.1,7.14224]
[1625163233510,3.89435097,2111.8,2111.1,12.15224]
[1625163233663,3.89435097,2111.8,2111.2,0.06]
[1625163234612,3.69435097,2111.8,2111.2,0.06]
[1625163235206,3.69435097,2111.8,2111.2,7.162]
[1625163235304,3.69435097,2111.8,2111.3,0.04]
[1625163237120,0.0138564,2111.8,2111.3,7.1416]
[1625163237513,6.4e-06,2111.8,2111.3,7.1416]
[1625163237614,6.4e-06,2111.8,2111.3,18.12699472]
[1625163237710,0.00608351,2112.3,2111.9,0.0059936]